bitfinex/quotes_SOLUSD_20241127
["timestamp","ask_amount","ask_price","bid_price","bid_amount"]
[1732677140969,13.20261079,233.77,233.7,13.20261079]
[1732677141174,22.99827743,233.76,233.68,13.20261079]
[1732677141385,13.20261079,233.74,233.66,13.20261079]
[1732677141580,16.39422482,233.73,233.62,4.2804]
[1732677141776,13.20261079,233.71,233.64,13.20261079]
[1732677141960,8.30189212,233.7,233.64,13.20261079]
[1732677142467,3.19161403,233.69,233.64,13.20261079]
[1732677142860,3.19161403,233.68,233.64,13.20261079]
[1732677143080,14.05831079,233.72,233.64,13.20261079]
[1732677143285,5.11169952,233.71,233.64,17.48261079]
[1732677143573,5.11169952,233.71,233.66,13.20261079]
[1732677143574,3.19487998,233.7,233.66,13.20261079]
[1732677144090,3.19487998,233.69,233.68,13.20261079]
[1732677144467,8.3065795,233.71,233.68,13.20261079]
[1732677144660,3.19487998,233.7,233.68,13.20261079]
[1732677145385,3.19487998,233.7,233.66,17.48221079]
[1732677145676,5.11169952,233.71,233.66,13.20261079]
[1732677145677,3.19487998,233.69,233.66,13.20261079]
[1732677145880,5.11169952,233.71,233.66,13.20261079]
[1732677146077,3.19696311,233.7,233.66,13.20261079]
[1732677146683,3.19696311,233.69,233.66,13.20261079]
[1732677146872,5.11169952,233.71,233.64,13.20261079]
[1732677147073,3.19747918,233.7,233.64,13.20261079]
[1732677147280,3.19747918,233.69,233.64,13.20261079]
[1732677147578,3.19747918,233.68,233.64,13.20261079]
[1732677147783,6.60847623,233.71,233.64,13.20261079]
[1732677147973,3.19811487,233.7,233.64,13.20261079]
[1732677148281,3.19811487,233.69,233.64,13.20261079]
[1732677148486,3.19811487,233.68,233.64,13.20261079]
[1732677148667,3.19811487,233.67,233.62,13.20261079]
[1732677148867,3.19811487,233.66,233.62,13.20261079]
[1732677149081,5.11169952,233.69,233.62,17.48301079]
[1732677149384,3.19865594,233.68,233.62,17.48301079]
[1732677149561,3.19865594,233.67,233.62,17.48301079]
[1732677149766,3.19865594,233.66,233.62,17.48301079]
[1732677149979,3.19865594,233.68,233.6,17.48341079]
[1732677150281,3.19857246,233.67,233.6,17.48341079]
[1732677150477,3.19857246,233.66,233.6,17.48341079]
[1732677150675,13.20261079,233.68,233.6,17.48341079]
[1732677150880,8.31650352,233.67,233.6,17.48341079]
[1732677151085,3.1986552,233.66,233.6,17.48341079]
[1732677151267,3.1986552,233.65,233.6,17.48341079]
[1732677151471,3.1986552,233.64,233.6,17.48341079]
[1732677151787,14.05851079,233.66,233.58,13.20261079]
[1732677151964,3.19887094,233.65,233.58,13.20261079]
[1732677152163,3.19887094,233.64,233.58,13.20261079]
[1732677152486,3.19887094,233.63,233.58,13.20261079]
[1732677152681,5.11839605,233.65,233.58,17.48371079]
[1732677152873,3.19888984,233.64,233.58,17.48371079]
[1732677153071,3.19888984,233.63,233.58,17.48371079]
[1732677153278,3.19888984,233.62,233.58,17.48371079]
[1732677153492,3.19888984,233.64,233.58,17.48371079]
[1732677153667,3.1988131,233.63,233.58,17.48371079]
[1732677153983,3.1988131,233.62,233.58,17.48371079]
[1732677154187,5.11839605,233.65,233.58,17.48371079]
[1732677154382,5.11839605,233.65,233.58,13.20261079]
[1732677154383,4.05478696,233.64,233.58,13.20261079]
[1732677154593,33.20261079,233.62,233.55,13.20261079]
[1732677154880,3.19878696,233.61,233.55,13.20261079]
[1732677155782,3.19878696,233.61,233.5,15.8315]
[1732677155976,3.19878696,233.6,233.54,13.20261079]
[1732677156159,3.19878696,233.59,233.54,13.20261079]
[1732677156364,14.6997875,233.61,233.54,13.20261079]
[1732677156563,3.19910932,233.6,233.54,13.20261079]
[1732677156765,3.19910932,233.59,233.53,13.20261079]
[1732677156969,3.19910932,233.58,233.53,13.20261079]
[1732677157186,5.1187192,233.6,233.54,13.20261079]
[1732677157390,3.19860264,233.59,233.54,13.20261079]
[1732677157592,3.19860264,233.58,233.54,13.20261079]
[1732677157769,5.1187192,233.6,233.54,13.20261079]
[1732677157963,3.19916306,233.59,233.54,13.20261079]
[1732677158160,3.19916306,233.58,233.54,13.20261079]
[1732677158375,5.1187192,233.6,233.54,13.20261079]
[1732677158589,3.19937091,233.59,233.57,13.20261079]
[1732677158906,0.8559,233.66,233.58,13.20261079]
[1732677159073,8.31764747,233.65,233.61,13.20261079]
[1732677159386,8.31764747,233.65,233.6,13.20261079]
[1732677159387,3.19909518,233.64,233.6,13.20261079]
[1732677159683,3.19909518,233.63,233.6,13.20261079]
[1732677159893,3.19909518,233.62,233.6,13.20261079]
[1732677160181,3.19909518,233.61,233.6,13.20261079]
[1732677160890,3.19909518,233.64,233.6,13.20261079]
[1732677161085,3.19909518,233.63,233.6,13.20261079]
[1732677161264,3.19909518,233.62,233.55,23.776884]
[1732677161473,5.11855229,233.66,233.61,13.20261079]
[1732677161684,3.19981395,233.65,233.63,13.20261079]
[1732677161971,16.3694,233.68,233.63,13.20261079]
[1732677161972,3.19981395,233.64,233.63,13.20261079]
[1732677162571,3.19981395,233.64,233.61,13.20261079]
[1732677162773,3.19981395,233.63,233.6,13.20261079]
[1732677162972,3.19981395,233.62,233.59,13.20261079]
[1732677163189,3.19981395,233.61,233.59,13.20261079]
[1732677163498,5.97455229,233.65,233.6,13.20261079]
[1732677163677,3.19978243,233.64,233.6,13.20261079]
[1732677163874,3.19978243,233.63,233.6,13.20261079]
[1732677164076,3.19978243,233.62,233.6,13.20261079]
[1732677164283,5.11855229,233.66,233.61,13.20261079]
[1732677164488,3.19964096,233.65,233.61,13.20261079]
[1732677164795,3.19943899,233.64,233.63,13.20261079]
[1732677165099,5.11910239,233.67,233.63,13.20261079]
[1732677165400,3.19924135,233.66,233.63,13.20261079]
[1732677165769,3.19924135,233.67,233.61,17.48301079]
[1732677166085,3.19923192,233.66,233.61,13.20261079]
[1732677166380,3.19923192,233.65,233.61,17.48321079]
[1732677166704,5.11877108,233.67,233.61,17.48321079]
[1732677166873,3.19941045,233.66,233.61,17.48321079]
[1732677167188,3.19941045,233.65,233.61,17.48321079]
[1732677167392,3.19941045,233.64,233.61,17.48321079]
[1732677167590,5.11877108,233.67,233.61,17.48321079]
[1732677167795,3.19948855,233.66,233.61,17.48321079]
[1732677167977,3.19948734,233.65,233.61,17.48321079]
[1732677168178,3.19948734,233.64,233.61,17.48321079]
[1732677168379,5.11917975,233.67,233.61,17.48321079]
[1732677168579,3.19953863,233.66,233.61,17.48321079]
[1732677168790,3.19953863,233.65,233.61,17.48321079]
[1732677168995,3.19953863,233.64,233.61,17.48321079]
[1732677169203,5.11917975,233.67,233.61,17.48321079]
[1732677169387,3.19966485,233.66,233.61,17.48321079]
[1732677169590,3.19966485,233.65,233.61,17.48321079]
[1732677169789,3.19966485,233.64,233.61,17.48321079]
[1732677169988,5.11917975,233.67,233.61,17.48321079]
[1732677170300,3.19966752,233.66,233.61,17.48321079]
[1732677170599,3.19966752,233.65,233.61,17.48321079]
[1732677170777,5.11917975,233.67,233.61,17.48321079]
[1732677170778,3.19966752,233.64,233.63,13.20261079]
[1732677170983,5.11914447,233.71,233.63,13.20261079]
[1732677171194,3.19943554,233.7,233.66,13.20261079]
[1732677171385,3.19943554,233.7,233.68,13.20261079]
[1732677171590,5.11914447,233.73,233.68,13.20261079]
[1732677171794,3.19896772,233.72,233.68,13.20261079]
[1732677172099,3.19896772,233.71,233.66,13.20261079]
[1732677172282,3.19896772,233.7,233.64,13.20261079]
[1732677172484,13.20261079,233.72,233.64,13.20261079]
[1732677172795,8.3167695,233.71,233.65,4.2799]
[1732677172982,3.1987575,233.7,233.65,4.2799]
[1732677173684,3.1987575,233.7,233.64,13.20261079]
[1732677173877,3.1987575,233.69,233.64,13.20261079]
[1732677174082,3.1987575,233.68,233.64,13.20261079]
[1732677174292,3.19892804,233.67,233.62,13.20261079]
[1732677174696,3.19892804,233.66,233.62,17.48291079]
[1732677174899,5.11841887,233.69,233.62,17.48291079]
[1732677175095,3.19907293,233.68,233.62,13.20261079]
[1732677175308,3.19907293,233.67,233.62,13.20261079]
[1732677175579,3.19907293,233.66,233.62,13.20261079]
[1732677175777,23.19907293,233.65,233.58,13.20261079]
[1732677176005,3.19907293,233.64,233.58,13.20261079]
[1732677176479,3.19907293,233.64,233.57,4.2813]
[1732677176687,3.19907293,233.63,233.57,13.20261079]
[1732677176898,3.19907293,233.62,233.57,13.20261079]
[1732677177080,3.19907293,233.61,233.57,13.20261079]
[1732677177275,5.97534808,233.64,233.57,13.20261079]
[1732677177501,3.19940406,233.63,233.57,13.20261079]
[1732677177815,5.97534808,233.64,233.57,13.20261079]
[1732677177816,3.19940406,233.62,233.57,13.20261079]
[1732677177983,5.97534808,233.64,233.57,13.20261079]
[1732677178183,3.19938166,233.63,233.57,13.20261079]
[1732677178511,3.19938166,233.62,233.59,13.20261079]
[1732677178886,5.97534808,233.64,233.59,13.20261079]
[1732677179184,3.19922759,233.63,233.59,13.20261079]
[1732677179401,3.19922759,233.62,233.59,13.20261079]
[1732677179689,5.97534808,233.64,233.59,13.20261079]
[1732677180009,3.19906966,233.63,233.59,13.20261079]
[1732677180213,3.19906966,233.62,233.59,13.20261079]
[1732677180507,5.97534808,233.64,233.59,13.20261079]
[1732677180695,3.19887599,233.63,233.59,13.20261079]
[1732677182892,20.8559,233.65,233.57,4.2813]
[1732677182893,3.19887599,233.62,233.57,17.48391079]
[1732677183093,9.17268142,233.64,233.57,17.48391079]
[1732677183416,3.19876318,233.63,233.57,17.48391079]
[1732677184015,3.19876318,233.63,233.59,13.20261079]
[1732677184212,3.19876318,233.62,233.61,13.20261079]
[1732677184391,0.64107671,233.73,233.61,13.20261079]
[1732677184392,33.20261079,233.71,233.61,13.20261079]
[1732677184708,0.64107671,233.7,233.63,13.20261079]
[1732677184886,20.0,233.67,233.63,13.20261079]
[1732677185086,8.95956957,233.7,233.63,13.20261079]
[1732677185087,3.19942033,233.66,233.63,13.20261079]
[1732677185316,3.19942033,233.65,233.63,13.20261079]
[1732677185610,5.12117307,233.67,233.63,13.20261079]
[1732677185911,3.20096968,233.66,233.63,13.20261079]
[1732677186108,3.20096968,233.65,233.63,13.20261079]
[1732677186311,3.20096968,233.64,233.63,13.20261079]
[1732677186618,3.20096968,233.66,233.59,13.20261079]
[1732677186818,3.20096968,233.65,233.59,13.20261079]
[1732677186994,3.20096968,233.64,233.59,13.20261079]
[1732677187313,3.20096968,233.63,233.59,13.20261079]
[1732677187514,3.20096968,233.62,233.59,13.20261079]
[1732677187692,5.12117307,233.66,233.59,13.20261079]
[1732677187892,3.20215287,233.65,233.59,13.20261079]
[1732677188092,3.20215287,233.64,233.59,13.20261079]
[1732677188294,3.20215287,233.63,233.6,8.45483261]
[1732677188615,3.20215287,233.62,233.6,8.45483261]
[1732677188794,5.97707307,233.66,233.6,8.45483261]
[1732677188997,3.20241724,233.65,233.6,8.45483261]
[1732677189210,3.20241724,233.64,233.6,8.45483261]
[1732677189411,3.20241724,233.63,233.6,8.45483261]
[1732677189719,3.20241724,233.62,233.6,8.45483261]
[1732677189888,5.12117307,233.67,233.6,8.45483261]
[1732677190091,8.32404301,233.66,233.6,8.45483261]
[1732677190314,8.32404301,233.65,233.6,8.45483261]
[1732677190515,3.20286994,233.64,233.6,8.45483261]
[1732677190701,3.20286994,233.63,233.6,8.45483261]
[1732677190898,3.20286994,233.62,233.6,8.45483261]
[1732677191218,3.20286994,233.61,233.54,4.2819]
[1732677191420,20.0,233.63,233.57,8.45483261]
[1732677191611,3.20385592,233.62,233.57,8.45483261]
[1732677191921,3.20385592,233.61,233.57,8.45483261]
[1732677192091,5.12616832,233.64,233.57,8.45483261]
[1732677192299,3.20425421,233.63,233.59,8.45483261]
[1732677192488,3.20425421,233.62,233.59,8.45483261]
[1732677192695,3.20425421,233.61,233.56,0.6420214]
[1732677193004,5.12616832,233.67,233.6,8.45483261]
[1732677193206,8.3304285,233.66,233.6,8.45483261]
[1732677193512,29.31073261,233.68,233.62,8.45483261]
[1732677193513,3.20426018,233.65,233.62,8.45483261]
[1732677193711,3.20426018,233.64,233.62,8.45483261]
[1732677193898,3.20426018,233.63,233.62,8.45483261]
[1732677194598,3.20426018,233.63,233.62,12.73523261]
[1732677194998,3.20442937,233.63,233.62,12.73523261]
[1732677195193,20.0,233.68,233.62,12.73523261]
[1732677195393,3.20445939,233.67,233.62,12.73523261]
[1732677195594,8.33159441,233.66,233.64,8.45483261]
[1732677195816,3.20445939,233.66,233.64,8.45483261]
[1732677196118,3.20445939,233.65,233.64,8.45483261]
[1732677196302,5.12713502,233.7,233.64,8.45483261]
[1732677196507,3.20371248,233.69,233.67,8.45483261]
[1732677196816,3.20371248,233.68,233.67,8.45483261]
[1732677197201,3.20371248,233.68,233.66,8.45483261]
[1732677197413,17.73937671,233.74,233.66,8.45483261]
[1732677197600,8.32939175,233.73,233.66,8.45483261]
[1732677197800,8.32939175,233.72,233.66,12.73443261]
[1732677198017,17.0983,233.74,233.66,12.73443261]
[1732677198018,8.32939175,233.71,233.66,12.73443261]
[1732677198218,3.20361221,233.7,233.66,12.73443261]
[1732677198393,3.20361221,233.69,233.66,12.73443261]
[1732677198598,3.20361221,233.68,233.66,12.73443261]
[1732677198796,3.20361221,233.67,233.66,12.73443261]
[1732677199011,8.32939175,233.72,233.66,12.73443261]
[1732677199210,8.32939175,233.71,233.66,12.73443261]
[1732677199421,3.20361221,233.7,233.66,12.73443261]
[1732677199718,3.20361221,233.69,233.66,12.73443261]
[1732677199915,3.20361221,233.68,233.66,12.73443261]
[1732677200238,5.12577954,233.73,233.66,12.73443261]
[1732677200419,3.20176786,233.72,233.66,12.73443261]
[1732677200610,3.20176786,233.71,233.66,12.73443261]
[1732677200814,3.20176786,233.7,233.66,12.73443261]
[1732677201019,3.20176786,233.69,233.66,12.73443261]
[1732677201201,8.45483261,233.74,233.66,12.73443261]
[1732677201202,5.12577954,233.73,233.66,12.73443261]
[1732677201525,8.45483261,233.74,233.66,12.73443261]
[1732677201526,8.3274724,233.72,233.66,12.73443261]
[1732677201704,3.20169286,233.71,233.66,12.73443261]
[1732677201907,3.20169286,233.7,233.66,12.73443261]
[1732677202212,3.20169286,233.69,233.66,12.73443261]
[1732677202403,5.12577954,233.73,233.66,12.73443261]
[1732677202599,3.20175178,233.72,233.68,8.45483261]
[1732677202819,3.20175178,233.71,233.68,8.45483261]
[1732677203128,9.31033261,233.77,233.68,8.45483261]
[1732677203129,20.0,233.74,233.68,8.45483261]
[1732677203420,8.32412803,233.73,233.68,8.45483261]
[1732677203624,3.2015877,233.72,233.69,4.2791]
[1732677203918,3.2015877,233.71,233.69,4.2791]
[1732677204322,3.2015877,233.7,233.69,4.2791]
[1732677204813,8.32412803,233.74,233.69,4.2791]
[1732677205009,1.49657671,233.76,233.64,0.64174594]
[1732677205010,3.2015877,233.73,233.65,23.776884]
[1732677205216,3.2015877,233.72,233.67,8.45483261]
[1732677205421,3.2015877,233.71,233.67,8.45483261]
[1732677205605,3.2015877,233.7,233.67,8.45483261]
[1732677205930,3.2015877,233.69,233.67,8.45483261]
[1732677206104,3.2015877,233.72,233.67,8.45483261]
[1732677206424,3.2012201,233.71,233.67,8.45483261]
[1732677206611,3.20115175,233.7,233.67,8.45483261]
[1732677206817,3.20115175,233.69,233.67,8.45483261]
[1732677207018,5.1218428,233.73,233.68,4.2793]
[1732677207228,3.20092996,233.72,233.68,4.2793]
[1732677207530,3.20092996,233.71,233.68,4.2793]
[1732677207708,3.20092996,233.7,233.68,4.2793]
[1732677207904,5.1218428,233.75,233.69,8.45483261]
[1732677208109,3.2003353,233.74,233.69,12.73383261]
[1732677208311,3.2003353,233.73,233.69,12.73383261]
[1732677208512,20.0,233.76,233.69,12.73383261]
[1732677208720,3.19973952,233.75,233.69,12.73383261]
[1732677208919,3.19973952,233.74,233.69,12.73383261]
[1732677209136,3.19973952,233.73,233.69,12.73383261]
[1732677209310,9.95140932,233.77,233.69,12.73383261]
[1732677209627,3.19934072,233.76,233.69,12.73383261]
[1732677209834,3.19934072,233.75,233.69,12.73383261]
[1732677210012,3.19934072,233.74,233.69,12.73383261]
[1732677210331,3.19934072,233.76,233.69,12.73383261]
[1732677210507,3.19934072,233.75,233.69,12.73383261]
[1732677210702,3.19934072,233.74,233.69,12.73383261]
[1732677210908,3.19934072,233.73,233.69,12.73383261]
[1732677211104,9.95140932,233.77,233.69,12.73383261]
[1732677211332,3.19849528,233.76,233.69,12.73383261]
[1732677211631,3.19849528,233.75,233.69,12.73383261]
[1732677211833,3.19849528,233.74,233.69,12.73383261]
[1732677212017,9.95140932,233.77,233.69,12.73383261]
[1732677212332,3.19807515,233.76,233.69,12.73383261]
[1732677213934,9.31033261,233.77,233.69,12.73383261]
[1732677215251,8.45483261,233.77,233.69,12.73383261]
[1732677215537,9.31023261,233.79,233.71,8.45483261]
[1732677215714,3.19720992,233.76,233.71,8.45483261]
[1732677216517,8.45483261,233.79,233.71,8.45483261]
[1732677217523,8.45483261,233.79,233.72,4.2786]
[1732677217926,3.19659709,233.78,233.72,4.2786]
[1732677218644,3.19659709,233.78,233.71,4.2788]
[1732677222229,8.45483261,233.79,233.71,4.2788]
[1732677222544,3.19378254,233.78,233.71,4.2788]
[1732677227249,3.19378254,233.78,233.7,8.45483261]
[1732677227250,8.45483261,233.75,233.68,16.0803]
[1732677227536,8.45483261,233.73,233.68,16.0803]
[1732677228334,8.45483261,233.73,233.67,4.2793]
[1732677228651,8.45483261,233.71,233.64,4.28]
[1732677229142,8.45483261,233.73,233.65,8.45483261]
[1732677229324,3.19475646,233.72,233.65,8.45483261]
[1732677230265,3.19475646,233.72,233.64,4.28]
[1732677230427,8.45483261,233.74,233.66,8.45483261]
[1732677230629,3.19526218,233.73,233.66,8.45483261]
[1732677230947,8.45483261,233.74,233.66,8.45483261]
[1732677231243,3.19518139,233.73,233.66,8.45483261]
[1732677232032,3.19518139,233.73,233.66,12.73443261]
[1732677232239,2.1385,233.81,233.69,8.45483261]
[1732677232240,0.8555,233.77,233.69,8.45483261]
[1732677232549,3.19578854,233.76,233.69,8.45483261]
[1732677233543,8.45483261,233.78,233.69,8.45483261]
[1732677233722,3.19599094,233.77,233.69,8.45483261]
[1732677234125,3.19599094,233.77,233.7,4.2789]
[1732677234422,3.19599094,233.77,233.71,8.45483261]
[1732677234627,3.19599094,233.76,233.71,8.45483261]
[1732677234849,9.31023261,233.79,233.71,8.45483261]
[1732677235146,3.19661926,233.78,233.71,8.45483261]
[1732677235447,3.19661926,233.77,233.71,8.45483261]
[1732677235644,3.19661926,233.76,233.71,8.45483261]
[1732677235946,3.19661926,233.75,233.7,12.73373261]
[1732677236249,3.19661926,233.77,233.7,12.73373261]
[1732677236427,3.19838835,233.76,233.7,12.73373261]
[1732677236622,3.19838835,233.75,233.7,12.73373261]
[1732677236826,9.95140932,233.78,233.7,12.73373261]
[1732677237026,3.19835364,233.77,233.7,12.73373261]
[1732677237239,3.19835364,233.76,233.7,12.73373261]
[1732677237432,3.19835364,233.75,233.7,12.73373261]
[1732677237631,3.19835364,233.77,233.7,12.73373261]
[1732677237858,3.19971532,233.76,233.7,12.73373261]
[1732677238150,3.19971532,233.75,233.7,12.73373261]
[1732677238357,3.19971532,233.74,233.7,12.73373261]
[1732677238529,3.19971532,233.73,233.7,12.73373261]
[1732677238729,9.95140932,233.78,233.7,12.73373261]
[1732677239049,3.20110709,233.77,233.7,12.73373261]
[1732677239248,3.20110709,233.76,233.7,12.73373261]
[1732677239547,3.20110709,233.75,233.72,8.45483261]
[1732677240045,8.45483261,233.79,233.72,8.45483261]
[1732677240255,3.20177547,233.78,233.72,8.45483261]
[1732677240451,3.20177547,233.77,233.73,4.2784]
[1732677240754,3.20177547,233.76,233.73,4.2784]
[1732677240939,3.20277872,233.77,233.73,4.2784]
[1732677241251,3.20279914,233.76,233.73,4.2784]
[1732677241551,0.64107671,233.75,233.66,4.2797]
[1732677241851,3.20315566,233.74,233.72,8.45483261]
[1732677242022,11.65798827,233.81,233.73,8.45483261]
[1732677242223,3.20275606,233.8,233.75,8.45483261]
[1732677242533,3.20290029,233.79,233.75,8.45483261]
[1732677242743,3.20290029,233.83,233.75,8.45483261]
[1732677243043,3.20286436,233.82,233.75,8.45483261]
[1732677243352,3.20286436,233.81,233.75,8.45483261]
[1732677243657,3.20286436,233.8,233.75,12.73273261]
[1732677243955,9.95120932,233.84,233.75,12.73273261]
[1732677243956,3.20286436,233.79,233.75,12.73273261]
[1732677244129,9.95120932,233.84,233.75,12.73273261]
[1732677244329,3.2022009,233.83,233.75,12.73273261]
[1732677244554,3.2022009,233.82,233.75,12.73273261]
[1732677244732,3.2022009,233.81,233.74,8.45483261]
[1732677244932,8.45483261,233.82,233.74,8.45483261]
[1732677245754,3.20277386,233.81,233.74,8.45483261]
[1732677245930,3.20277386,233.8,233.74,12.73303261]
[1732677246132,3.20277386,233.79,233.74,12.73303261]
[1732677246442,3.20277386,233.78,233.74,12.73303261]
[1732677246639,8.45483261,233.82,233.74,12.73303261]
[1732677246841,3.20270063,233.81,233.74,12.73303261]
[1732677247034,3.20270063,233.8,233.74,12.73303261]
[1732677247241,3.20270063,233.79,233.74,12.73303261]
[1732677247438,8.45483261,233.82,233.74,12.73303261]
[1732677247439,3.20270063,233.78,233.74,12.73303261]
[1732677247643,8.45483261,233.82,233.74,12.73303261]
[1732677247842,3.20266225,233.81,233.74,12.73303261]
[1732677248043,3.20266225,233.8,233.74,12.73303261]
[1732677248236,8.45483261,233.82,233.74,12.73303261]
[1732677248237,3.20266225,233.79,233.74,12.73303261]
[1732677248657,8.45483261,233.82,233.74,12.73303261]
[1732677249028,3.20234514,233.81,233.73,16.1736]
[1732677249253,8.45483261,233.78,233.68,16.1736]
[1732677249437,3.20234514,233.77,233.69,8.45483261]
[1732677249632,3.20234514,233.76,233.69,8.45483261]
[1732677249957,8.45483261,233.78,233.69,8.45483261]
[1732677250263,3.20260508,233.77,233.69,8.45483261]
[1732677250434,3.20260508,233.76,233.69,8.45483261]
[1732677250632,11.65743769,233.76,233.68,16.1736]
[1732677250845,9.73813261,233.76,233.68,16.1736]
[1732677251155,3.20260508,233.75,233.68,20.4528]
[1732677251368,3.20260508,233.74,233.68,20.4528]
[1732677251651,9.73813261,233.76,233.68,20.4528]
[1732677251860,3.20369044,233.75,233.68,20.4528]
[1732677252038,3.20369044,233.74,233.68,20.4528]
[1732677252242,3.20369044,233.73,233.69,8.45483261]
[1732677252432,28.45483261,233.78,233.71,8.45483261]
[1732677252636,3.20395779,233.77,233.71,8.45483261]
[1732677252832,3.20395779,233.76,233.71,8.45483261]
[1732677253042,3.20395779,233.75,233.71,8.45483261]
[1732677253247,3.20395779,233.74,233.71,8.45483261]
[1732677253455,20.0,233.79,233.71,12.73343261]
[1732677253657,23.20399001,233.78,233.71,12.73343261]
[1732677253953,11.65884497,233.77,233.71,4.2786]
[1732677254153,3.84508907,233.76,233.68,24.62843261]
[1732677254454,3.20401236,233.75,233.68,28.90763261]
[1732677254649,3.20401236,233.74,233.68,28.90763261]
[1732677254853,3.20401236,233.73,233.68,20.4528]
[1732677255046,9.09590932,233.77,233.68,28.90763261]
[1732677255239,3.20431903,233.76,233.7,8.45483261]
[1732677255661,3.20431903,233.75,233.7,8.45483261]
[1732677255844,20.0,233.78,233.7,8.45483261]
[1732677256047,3.20406071,233.77,233.7,8.45483261]
[1732677256358,3.20406071,233.76,233.7,8.45483261]
[1732677256564,3.20406071,233.75,233.7,8.45483261]
[1732677256758,0.64107671,233.86,233.74,8.45483261]
[1732677256957,8.45483261,233.84,233.76,8.45483261]
[1732677257149,3.20372819,233.83,233.76,8.45483261]
[1732677257350,8.45483261,233.84,233.77,4.2777]
[1732677257567,3.20290913,233.83,233.77,4.2777]
[1732677257778,3.20290913,233.82,233.77,4.2777]
[1732677258063,3.20290913,233.81,233.77,4.2777]
[1732677258243,3.20290913,233.8,233.77,4.2777]
[1732677258439,9.09590932,233.84,233.77,4.2777]
[1732677258664,8.45483261,233.82,233.74,8.45483261]
[1732677258862,3.20248304,233.81,233.74,8.45483261]
[1732677259049,12.29839236,233.8,233.73,4.2784]
[1732677259254,3.20248304,233.79,233.74,8.45483261]
[1732677260260,3.20248304,233.78,233.74,8.45483261]
[1732677260475,9.73773261,233.83,233.74,8.45483261]
[1732677260650,23.20272764,233.82,233.74,8.45483261]
[1732677260850,3.20272764,233.81,233.7,23.776884]
[1732677261055,20.0,233.81,233.76,8.45483261]
[1732677261446,3.2024177,233.8,233.77,4.2777]
[1732677261668,8.45483261,233.84,233.77,4.2777]
[1732677261867,3.20206804,233.83,233.77,4.2777]
[1732677262169,3.20206804,233.82,233.77,12.73253261]
[1732677262345,3.20206804,233.82,233.77,4.2777]
[1732677262548,3.20206804,233.81,233.77,12.73253261]
[1732677262776,8.45483261,233.84,233.77,4.2777]
[1732677262968,3.2017033,233.83,233.77,4.2777]
[1732677263147,3.2017033,233.82,233.77,4.2777]
[1732677263347,3.2017033,233.81,233.77,4.2777]
[1732677263563,8.45483261,233.84,233.77,4.2777]
[1732677263870,3.20122823,233.83,233.77,4.2777]
[1732677264043,3.20122823,233.82,233.77,4.2777]
[1732677264244,3.20122823,233.81,233.77,4.2777]
[1732677264448,8.45483261,233.84,233.77,4.2777]
[1732677264655,3.2007966,233.83,233.77,4.2777]
[1732677264853,3.2007966,233.82,233.77,4.2777]
[1732677265064,3.2007966,233.81,233.77,4.2777]
[1732677265269,8.45483261,233.84,233.77,4.2777]
[1732677265452,3.20046204,233.83,233.77,4.2777]
[1732677265652,3.20046204,233.82,233.77,4.2777]
[1732677265865,3.20046204,233.81,233.77,4.2777]
[1732677266076,8.45483261,233.84,233.77,4.2777]
[1732677266250,3.20022966,233.83,233.77,4.2777]
[1732677269052,11.65506227,233.83,233.77,4.2777]
[1732677269272,3.20022966,233.82,233.77,4.2777]
[1732677269471,11.65506227,233.82,233.77,4.2777]
[1732677269676,8.45483261,233.8,233.71,4.2788]
[1732677269970,8.45483261,233.78,233.71,12.73363261]
[1732677270757,3.19957895,233.77,233.71,12.73363261]
[1732677271870,8.45483261,233.78,233.71,12.73363261]
[1732677272071,8.45483261,233.8,233.71,12.73363261]
[1732677272369,3.19970424,233.79,233.71,12.73363261]
[1732677272977,0.64107671,233.78,233.71,12.73363261]
[1732677273268,3.19970424,233.77,233.71,12.73363261]
[1732677273481,8.45483261,233.78,233.71,12.73363261]
[1732677273653,3.2000724,233.77,233.71,12.73363261]
[1732677274051,8.45483261,233.76,233.68,16.1736]
[1732677274251,8.45483261,233.76,233.69,4.2789]
[1732677275297,3.20154611,233.75,233.69,4.2789]
[1732677275475,3.84262282,233.75,233.69,4.2789]
[1732677275651,8.45483261,233.73,233.62,22.8582]
[1732677275854,3.2019786,233.72,233.64,8.45483261]
[1732677276077,12.29788792,233.71,233.63,8.45483261]
[1732677276383,3.2019786,233.7,233.64,8.45483261]
[1732677276761,3.2019786,233.7,233.65,4.2799]
[1732677278278,3.2019786,233.7,233.65,8.45483261]
[1732677278466,20.0,233.72,233.66,8.45483261]
[1732677278857,1.2835,233.74,233.66,8.45483261]
[1732677279182,9.73833261,233.74,233.66,8.45483261]
[1732677279386,3.84092233,233.73,233.67,8.45483261]
[1732677279687,23.19984562,233.72,233.67,12.73433261]
[1732677279885,20.0,233.72,233.67,12.73433261]
[1732677280462,2.1385,233.81,233.68,8.45483261]
[1732677280690,8.45483261,233.77,233.69,8.45483261]
[1732677280870,3.19916471,233.76,233.69,8.45483261]
[1732677281065,3.19916471,233.75,233.68,8.45483261]
[1732677281465,3.19916471,233.75,233.69,4.2791]
[1732677281680,3.19916471,233.75,233.66,8.45483261]